[Event "50th Ciudad Sevilla 2024"]
[Site "Sevilla"]
[Date "2025.01.10"]
[Round "1.12"]
[White "Cruz Rodriguez, Israel"]
[Black "Druska, Juraj"]
[Result "0-1"]
[Annotator "RC"]
[ECO "B23"]
[WhiteElo "1848"]
[BlackElo "2438"]
[PlyCount "58"]
[EventDate "2025.01.10"]
[EventType "swiss"]
[EventCountry "ESP"]
[SourceTitle "playchess.com"]
[Source "ChessBase"]
[SourceQuality "1"]
[TimeControl "90+30"]

1. e4 {[%emt 0:00:00]} c5 {[%emt 0:00:00]} 2. Nc3 {[%emt 0:00:00]} g6 {[%emt 0:00:00]} 3. Nf3 {[%emt 0:00:00]} Bg7 {[%emt 0:00:00]} 4. Bc4 {[%emt 0:00:00]} Nc6 {[%emt 0:00:00]} 5. O-O {[%emt 0:00:00]} d6 {[%emt 0:00:00]} 6. d3 {[%emt 0:00:00]} e6 {[%emt 0:00:00]} 7. Re1 {[%emt 0:00:00]} Nge7 {[%emt 0:00:00]} 8. Bg5 {[%emt 0:00:00]} h6 {[%emt 0:00:00]} 9. Bh4 {[%emt 0:00:00]} g5 {[%emt 0:00:00]} 10. Bg3 {[%emt 0:00:00]} Ng6 {[%emt 0:00:00]} 11. Rb1 {[%emt 0:00:00]} g4 {[%emt 0:00:00]} 12. Nd2 {[%emt 0:00:00]} h5 {[%emt 0:00:00]} 13. Nb5 {[%emt 0:00:00]} Nce5 {[%emt 0:00:00]} 14. Bxe5 {[%emt 0:00:00]} Bxe5 {[%emt 0:00:00]} 15. Nc3 {[%emt 0:00:00]} a6 {[%emt 0:00:00]} 16. a4 {[%emt 0:00:00]} Qg5 {[%emt 0:00:00]} 17. Ne2 {[%emt 0:00:00]} h4 {[%emt 0:00:00]} 18. Rf1 {[%emt 0:00:00]} Nf4 {[%emt 0:00:00]} 19. c3 {[%emt 0:00:00]} Bd7 {[%emt 0:00:00]} 20. d4 {[%emt 0:00:00]} cxd4 {[%emt 0:00:00]} 21. Nxd4 {[%emt 0:00:00]} Nh3+ {[%emt 0:00:00]} 22. Kh1 {[%emt 0:00:36]} Qf4 {[%emt 0:00:00]} 23. N4f3 {[%emt 0:04:58]} gxf3 {[%emt 0:00:00]} 24. Nxf3 {[%emt 0:00:20]} Bc6 {[%emt 0:00:00]} 25. Qd2 {[%emt 0:02:08]} Bxe4 {[%emt 0:00:00]} 26. Qxf4 {[%emt 0:01:52]} Nxf4 {[%emt 0:00:00]} 27. Rbe1 {[%emt 0:01:38]} h3 {[%emt 0:00:00]} 28. Rxe4 {[%emt 0:01:25]} hxg2+ {[%emt 0:00:00]} 29. Kg1 {[%emt 0:00:07]} Rg8 {[%emt 0:00:00]} 0-1

[Event "50th Ciudad Sevilla 2024"]
[Site "Sevilla"]
[Date "2025.01.10"]
[Round "1.13"]
[White "Marin, Mihail"]
[Black "Godino Benitez, Miguel"]
[Result "1-0"]
[Annotator "RC"]
[ECO "A45"]
[WhiteElo "2431"]
[BlackElo "1845"]
[PlyCount "53"]
[EventDate "2025.01.10"]
[EventType "swiss"]
[EventCountry "ESP"]
[SourceTitle "playchess.com"]
[Source "ChessBase"]
[SourceQuality "1"]
[TimeControl "90+30"]

1. d4 {[%emt 0:00:00]} Nf6 {[%emt 0:00:00]} 2. g3 {[%emt 0:00:00]} e6 {[%emt 0:00:00]} 3. Bg2 {[%emt 0:00:00]} c5 {[%emt 0:00:00]} 4. Nf3 {[%emt 0:00:00]} Nc6 {[%emt 0:00:00]} 5. O-O {[%emt 0:00:00]} Be7 {[%emt 0:00:00]} 6. c4 {[%emt 0:00:00]} cxd4 {[%emt 0:00:00]} 7. Nxd4 {[%emt 0:00:00]} h6 {[%emt 0:00:00]} 8. Nc3 {[%emt 0:00:00]} O-O {[%emt 0:00:00]} 9. b3 {[%emt 0:00:00]} Bc5 {[%emt 0:00:00]} 10. Ndb5 {[%emt 0:00:00]} d6 {[%emt 0:00:00]} 11. Na4 {[%emt 0:00:00]} Bb4 {[%emt 0:00:00]} 12. a3 {[%emt 0:00:00]} a6 {[%emt 0:00:00]} 13. Nd4 {[%emt 0:00:00]} Nxd4 {[%emt 0:00:00]} 14. axb4 {[%emt 0:00:00]} e5 {[%emt 0:00:00]} 15. Bb2 {[%emt 0:00:00]} Nc6 {[%emt 0:00:00]} 16. Qd2 {[%emt 0:00:00]} Qc7 {[%emt 0:00:00]} 17. Rac1 {[%emt 0:00:00]} Be6 {[%emt 0:00:00]} 18. b5 {[%emt 0:00:00]} Ne7 {[%emt 0:00:00]} 19. b6 {[%emt 0:00:00]} Qd7 {[%emt 0:00:00]} 20. Rfd1 {[%emt 0:00:00]} Rfd8 {[%emt 0:00:00]} 21. Qe3 {[%emt 0:00:00]} Nf5 {[%emt 0:00:00]} 22. Qf3 {[%emt 0:00:00]} e4 {[%emt 0:04:44]} 23. Qf4 {[%emt 0:00:00]} Rac8 {[%emt 0:03:04]} 24. Bxf6 {[%emt 0:00:00]} gxf6 {[%emt 0:00:20]} 25. Bxe4 {[%emt 0:00:00]} d5 {[%emt 0:01:00]} 26. Bxf5 {[%emt 0:00:00]} Bxf5 {[%emt 0:00:16]} 27. Rxd5 {[%emt 0:00:00]} 1-0

[Event "50th Ciudad Sevilla 2024"]
[Site "Sevilla"]
[Date "2025.01.10"]
[Round "1.14"]
[White "Mazo Ganan, Victor Manuel"]
[Black "Xu, Minghui"]
[Result "0-1"]
[Annotator "RC"]
[ECO "E30"]
[WhiteElo "1845"]
[BlackElo "2428"]
[PlyCount "76"]
[EventDate "2025.01.10"]
[EventType "swiss"]
[EventCountry "ESP"]
[SourceTitle "playchess.com"]
[Source "ChessBase"]
[SourceQuality "1"]
[TimeControl "90+30"]

1. d4 {[%emt 0:00:00]} Nf6 {[%emt 0:00:00]} 2. c4 {[%emt 0:00:00]} e6 {[%emt 0:00:00]} 3. Nc3 {[%emt 0:00:00]} Bb4 {[%emt 0:00:00]} 4. Bg5 {[%emt 0:00:00]} b6 {[%emt 0:00:00]} 5. Nf3 {[%emt 0:00:00]} Bb7 {[%emt 0:00:00]} 6. e3 {[%emt 0:00:00]} h6 {[%emt 0:00:00]} 7. Bxf6 {[%emt 0:00:00]} Bxc3+ {[%emt 0:00:00]} 8. bxc3 {[%emt 0:00:00]} Qxf6 {[%emt 0:00:00]} 9. Be2 {[%emt 0:00:00]} O-O {[%emt 0:00:00]} 10. O-O {[%emt 0:00:00]} d6 {[%emt 0:00:00]} 11. a4 {[%emt 0:00:00]} Nc6 {[%emt 0:00:00]} 12. d5 {[%emt 0:00:00]} Na5 {[%emt 0:00:00]} 13. dxe6 {[%emt 0:00:00]} fxe6 {[%emt 0:00:00]} 14. Qd4 {[%emt 0:00:00]} e5 {[%emt 0:00:00]} 15. Qg4 {[%emt 0:00:00]} Nb3 {[%emt 0:00:00]} 16. Ra3 {[%emt 0:00:00]} Nc5 {[%emt 0:00:00]} 17. a5 {[%emt 0:00:00]} Bc8 {[%emt 0:00:00]} 18. Qh5 {[%emt 0:00:00]} Be6 {[%emt 0:00:00]} 19. Nd2 {[%emt 0:00:00]} bxa5 {[%emt 0:00:00]} 20. Bf3 {[%emt 0:00:00]} Rab8 {[%emt 0:00:00]} 21. Rxa5 {[%emt 0:00:00]} Rb2 {[%emt 0:00:00]} 22. Rxc5 {[%emt 0:00:00]} dxc5 {[%emt 0:00:00]} 23. Ne4 {[%emt 0:00:00]} Qf5 {[%emt 0:00:00]} 24. Qxf5 {[%emt 0:00:00]} Bxf5 {[%emt 0:00:00]} 25. Nxc5 {[%emt 0:00:00]} Rb1 {[%emt 0:00:00]} 26. Bd5+ {[%emt 0:00:00]} Kh7 {[%emt 0:00:00]} 27. Rxb1 {[%emt 0:00:00]} Bxb1 {[%emt 0:00:00]} 28. Nd7 {[%emt 0:00:00]} Re8 {[%emt 0:00:00]} 29. c5 {[%emt 0:00:00]} a5 {[%emt 0:00:00]} 30. Bc6 {[%emt 0:00:00]} Rd8 {[%emt 0:00:00]} 31. Kf1 {[%emt 0:00:00]} Bc2 {[%emt 0:00:00]} 32. Nxe5 {[%emt 0:00:00]} a4 {[%emt 0:00:00]} 33. Bb5 {[%emt 0:00:00]} a3 {[%emt 0:00:00]} 34. Bc4 {[%emt 0:00:00]} Rb8 {[%emt 0:00:00]} 35. Nc6 {[%emt 0:00:00]} Bb3 {[%emt 0:00:00]} 36. Bd3+ {[%emt 0:00:00]} g6 {[%emt 0:00:00]} 37. Nb4 {[%emt 0:00:00]} Rxb4 {[%emt 0:00:00]} 38. cxb4 {[%emt 0:00:00]} a2 {[%emt 0:00:00]} 0-1

[Event "50th Ciudad Sevilla 2024"]
[Site "Sevilla"]
[Date "2025.01.10"]
[Round "1.15"]
[White "Del Rio De Angelis, Salvador G."]
[Black "Lozano Garcia, Antonio"]
[Result "1-0"]
[Annotator "ChessBase"]
[ECO "D30"]
[WhiteElo "2403"]
[BlackElo "1843"]
[PlyCount "43"]
[EventDate "2025.01.10"]
[EventType "swiss"]
[EventCountry "ESP"]
[SourceTitle "playchess.com"]
[Source "ChessBase"]
[SourceQuality "1"]
[TimeControl "90+30"]

1. d4 {[%emt 0:00:00]} d5 {[%emt 0:00:00]} 2. c4 {[%emt 0:00:00]} e6 {[%emt 0:00:00]} 3. Nf3 {[%emt 0:00:00]} Nf6 {[%emt 0:00:00]} 4. e3 {[%emt 0:00:00]} c6 {[%emt 0:00:00]} 5. Bd3 {[%emt 0:00:00]} Nbd7 {[%emt 0:00:00]} 6. b3 {[%emt 0:00:00]} Be7 {[%emt 0:00:00]} 7. O-O {[%emt 0:00:00]} O-O {[%emt 0:00:00]} 8. Bb2 {[%emt 0:00:00]} a6 {[%emt 0:00:00]} 9. Nbd2 {[%emt 0:00:00]} b5 {[%emt 0:00:00]} 10. Qc2 {[%emt 0:00:00]} Bb7 {[%emt 0:00:00]} 11. Rad1 {[%emt 0:00:00]} Rc8 {[%emt 0:00:00]} 12. c5 {[%emt 0:00:00]} Re8 {[%emt 0:00:00]} 13. Ne5 {[%emt 0:00:00]} g6 {[%emt 0:00:00]} 14. f4 {[%emt 0:00:00]} Nxe5 {[%emt 0:00:00]} 15. fxe5 {[%emt 0:00:00]} Ng4 {[%emt 0:00:00]} 16. Rf3 {[%emt 0:00:00]} f5 {[%emt 0:00:00]} 17. exf6 {[%emt 0:00:00]} Nxf6 {[%emt 0:00:00]} 18. Bxg6 {[%emt 0:00:00]} Rf8 {[%emt 0:00:00]} 19. Rdf1 {[%emt 0:00:00]} Qc7 {[%emt 0:00:00]} 20. Bxh7+ {[%emt 0:00:00]} Nxh7 {[%emt 0:00:00]} 21. Qg6+ {[%emt 0:00:00]} Kh8 {[%emt 0:00:00]} 22. Rf7 {[%emt 0:00:00]} 1-0

[Event "50th Ciudad Sevilla 2024"]
[Site "Sevilla"]
[Date "2025.01.10"]
[Round "1.17"]
[White "Isanzhulov, Arystan"]
[Black "Baquero Baquero, Antonio"]
[Result "1-0"]
[Annotator "RC"]
[ECO "B01"]
[WhiteElo "2397"]
[BlackElo "1836"]
[PlyCount "89"]
[EventDate "2025.01.10"]
[EventType "swiss"]
[EventCountry "ESP"]
[SourceTitle "playchess.com"]
[Source "ChessBase"]
[SourceQuality "1"]
[TimeControl "90+30"]

1. e4 {[%emt 0:00:00]} d5 {[%emt 0:00:00]} 2. exd5 {[%emt 0:00:00]} Nf6 {[%emt 0:00:00]} 3. Bb5+ {[%emt 0:00:00]} Bd7 {[%emt 0:00:00]} 4. Be2 {[%emt 0:00:00]} Nxd5 {[%emt 0:00:00]} 5. d4 {[%emt 0:00:00]} e6 {[%emt 0:00:00]} 6. c4 {[%emt 0:00:00]} Bb4+ {[%emt 0:00:00]} 7. Bd2 {[%emt 0:00:00]} Bxd2+ {[%emt 0:00:00]} 8. Qxd2 {[%emt 0:00:00]} Nf6 {[%emt 0:00:00]} 9. Nf3 {[%emt 0:00:00]} Bc6 {[%emt 0:00:00]} 10. Ne5 {[%emt 0:00:00]} Nfd7 {[%emt 0:00:00]} 11. Nf3 {[%emt 0:00:00]} Nf6 {[%emt 0:00:00]} 12. O-O {[%emt 0:00:00]} Bxf3 {[%emt 0:00:00]} 13. Bxf3 {[%emt 0:00:00]} c6 {[%emt 0:00:00]} 14. b4 {[%emt 0:00:00]} O-O {[%emt 0:00:00]} 15. a4 {[%emt 0:00:00]} Nbd7 {[%emt 0:00:00]} 16. a5 {[%emt 0:00:00]} Rc8 {[%emt 0:00:00]} 17. a6 {[%emt 0:00:00]} b6 {[%emt 0:00:00]} 18. Re1 {[%emt 0:00:00]} Re8 {[%emt 0:00:00]} 19. Nc3 {[%emt 0:00:00]} Qc7 {[%emt 0:00:00]} 20. Rad1 {[%emt 0:00:00]} Qb8 {[%emt 0:00:00]} 21. g4 {[%emt 0:00:00]} h6 {[%emt 0:00:00]} 22. h4 {[%emt 0:00:00]} Nf8 {[%emt 0:00:00]} 23. Ne4 {[%emt 0:00:00]} Nxe4 {[%emt 0:00:00]} 24. Bxe4 {[%emt 0:01:53]} Qd6 {[%emt 0:00:00]} 25. g5 {[%emt 0:02:10]} hxg5 {[%emt 0:00:00]} 26. hxg5 {[%emt 0:00:05]} Nd7 {[%emt 0:00:00]} 27. f4 {[%emt 0:00:46]} f5 {[%emt 0:00:00]} 28. Bb1 {[%emt 0:03:31]} g6 {[%emt 0:00:00]} 29. c5 {[%emt 0:00:28]} Qc7 {[%emt 0:00:00]} 30. Ba2 {[%emt 0:00:38]} Nf8 {[%emt 0:01:49]} 31. Re5 {[%emt 0:00:14]} bxc5 {[%emt 0:00:46]} 32. bxc5 {[%emt 0:00:40]} Rb8 {[%emt 0:00:43]} 33. Bc4 {[%emt 0:00:23]} Qh7 {[%emt 0:01:40]} 34. Kg2 {[%emt 0:00:47]} Qd7 {[%emt 0:07:13]} 35. Qc3 {[%emt 0:00:51]} Re7 {[%emt 0:01:03]} 36. Kg3 {[%emt 0:00:30]} Rh7 {[%emt 0:01:36]} 37. Rde1 {[%emt 0:00:38]} Re8 {[%emt 0:00:38]} 38. Qe3 {[%emt 0:00:47]} Rhe7 {[%emt 0:00:21]} 39. Rb1 {[%emt 0:02:20]} Qd8 {[%emt 0:01:09]} 40. Rb7 {[%emt 0:01:09]} Qa5 {[%emt 0:00:14]} 41. Rxe7 {[%emt 0:01:11]} Rxe7 {[%emt 0:00:09]} 42. Bxe6+ {[%emt 0:00:03]} Nxe6 {[%emt 0:02:14]} 43. Rxe6 {[%emt 0:00:05]} Rxe6 {[%emt 0:01:11]} 44. Qxe6+ {[%emt 0:00:04]} Kg7 {[%emt 0:00:14]} 45. Qf6+ {[%emt 0:00:13]} 1-0

[Event "50th Ciudad Sevilla 2024"]
[Site "Sevilla"]
[Date "2025.01.10"]
[Round "1.18"]
[White "Matias, Luis Miguel Rodrigue"]
[Black "Matamoros Franco, Carlos S."]
[Result "0-1"]
[Annotator "RC"]
[ECO "A10"]
[WhiteElo "1834"]
[BlackElo "2394"]
[PlyCount "66"]
[EventDate "2025.01.10"]
[EventType "swiss"]
[EventCountry "ESP"]
[SourceTitle "playchess.com"]
[Source "ChessBase"]
[SourceQuality "1"]
[TimeControl "90+30"]

1. c4 {[%emt 0:00:00]} b6 {[%emt 0:00:00]} 2. Nc3 {[%emt 0:00:00]} Bb7 {[%emt 0:00:00]} 3. Nf3 {[%emt 0:00:00]} e6 {[%emt 0:00:00]} 4. d4 {[%emt 0:00:00]} Bb4 {[%emt 0:00:00]} 5. Bf4 {[%emt 0:00:00]} Nf6 {[%emt 0:00:00]} 6. a3 {[%emt 0:00:00]} Bxc3+ {[%emt 0:00:00]} 7. bxc3 {[%emt 0:00:00]} d6 {[%emt 0:00:00]} 8. e3 {[%emt 0:00:00]} Nbd7 {[%emt 0:00:00]} 9. Be2 {[%emt 0:00:00]} Ne4 {[%emt 0:00:00]} 10. Rc1 {[%emt 0:00:00]} g5 {[%emt 0:00:00]} 11. Bg3 {[%emt 0:00:00]} h5 {[%emt 0:00:00]} 12. h4 {[%emt 0:00:00]} g4 {[%emt 0:00:00]} 13. Nd2 {[%emt 0:00:00]} Nxg3 {[%emt 0:00:00]} 14. fxg3 {[%emt 0:00:00]} Bxg2 {[%emt 0:00:00]} 15. Rh2 {[%emt 0:00:00]} Bb7 {[%emt 0:00:00]} 16. Rf2 {[%emt 0:00:00]} Qe7 {[%emt 0:00:00]} 17. Qa4 {[%emt 0:00:00]} f5 {[%emt 0:00:00]} 18. Bf1 {[%emt 0:00:00]} O-O {[%emt 0:00:00]} 19. Bg2 {[%emt 0:00:00]} Bxg2 {[%emt 0:00:00]} 20. Rxg2 {[%emt 0:00:00]} e5 {[%emt 0:00:00]} 21. Re2 {[%emt 0:00:00]} c5 {[%emt 0:00:00]} 22. Qc6 {[%emt 0:00:00]} Rae8 {[%emt 0:00:00]} 23. Qg2 {[%emt 0:00:00]} Kg7 {[%emt 0:00:00]} 24. Kf1 {[%emt 0:00:00]} Qf6 {[%emt 0:00:00]} 25. Rce1 {[%emt 0:00:00]} Rf7 {[%emt 0:00:00]} 26. Nb3 {[%emt 0:00:00]} Qg6 {[%emt 0:00:00]} 27. Kg1 {[%emt 0:00:00]} Nf6 {[%emt 0:00:00]} 28. Nd2 {[%emt 0:00:00]} Ne4 {[%emt 0:00:00]} 29. Rc1 {[%emt 0:01:05]} Nxd2 {[%emt 0:00:00]} 30. Rxd2 {[%emt 0:00:07]} Qh6 {[%emt 0:00:00]} 31. Qf2 {[%emt 0:05:10]} f4 {[%emt 0:00:00]} 32. exf4 {[%emt 0:00:23]} exf4 {[%emt 0:00:00]} 33. Rf1 {[%emt 0:01:18]} Re3 {[%emt 0:00:00]} 0-1

[Event "50th Ciudad Sevilla 2024"]
[Site "Sevilla"]
[Date "2025.01.10"]
[Round "1.19"]
[White "Lin, Yingrui"]
[Black "Munoz Jorva, Miguel Angel"]
[Result "1-0"]
[Annotator "ChessBase"]
[ECO "A05"]
[WhiteElo "2393"]
[BlackElo "1831"]
[PlyCount "75"]
[EventDate "2025.01.10"]
[EventType "swiss"]
[EventCountry "ESP"]
[SourceTitle "playchess.com"]
[Source "ChessBase"]
[SourceQuality "1"]
[TimeControl "90+30"]

1. Nf3 {[%emt 0:00:00]} Nf6 {[%emt 0:00:00]} 2. g3 {[%emt 0:00:00]} g6 {[%emt 0:00:00]} 3. Bg2 {[%emt 0:00:00]} Bg7 {[%emt 0:00:00]} 4. d4 {[%emt 0:00:00]} d5 {[%emt 0:00:00]} 5. c4 {[%emt 0:00:00]} c6 {[%emt 0:00:00]} 6. b3 {[%emt 0:00:00]} O-O {[%emt 0:00:00]} 7. Bb2 {[%emt 0:00:00]} Na6 {[%emt 0:00:00]} 8. Nbd2 {[%emt 0:00:00]} Bg4 {[%emt 0:00:00]} 9. Ne5 {[%emt 0:00:00]} Bf5 {[%emt 0:00:00]} 10. O-O {[%emt 0:00:00]} Nc7 {[%emt 0:00:00]} 11. h3 {[%emt 0:00:00]} Rc8 {[%emt 0:00:00]} 12. g4 {[%emt 0:00:00]} Be6 {[%emt 0:00:00]} 13. f4 {[%emt 0:00:00]} Rb8 {[%emt 0:00:00]} 14. Rc1 {[%emt 0:00:00]} Bc8 {[%emt 0:00:00]} 15. e3 {[%emt 0:00:00]} Nfe8 {[%emt 0:00:00]} 16. Qe1 {[%emt 0:00:00]} f6 {[%emt 0:00:00]} 17. Nd3 {[%emt 0:00:00]} Nd6 {[%emt 0:00:00]} 18. Ba3 {[%emt 0:00:00]} f5 {[%emt 0:00:00]} 19. Bxd6 {[%emt 0:00:00]} exd6 {[%emt 0:00:00]} 20. g5 {[%emt 0:00:00]} dxc4 {[%emt 0:00:00]} 21. bxc4 {[%emt 0:00:00]} Be6 {[%emt 0:00:00]} 22. Nb3 {[%emt 0:00:00]} Qd7 {[%emt 0:00:00]} 23. Qa5 {[%emt 0:00:00]} Na6 {[%emt 0:00:00]} 24. c5 {[%emt 0:00:00]} Bxb3 {[%emt 0:00:00]} 25. axb3 {[%emt 0:00:00]} dxc5 {[%emt 0:00:00]} 26. Nxc5 {[%emt 0:00:00]} Nxc5 {[%emt 0:00:00]} 27. Qxc5 {[%emt 0:00:00]} a6 {[%emt 0:00:07]} 28. d5 {[%emt 0:00:00]} cxd5 {[%emt 0:00:28]} 29. Qxd5+ {[%emt 0:00:00]} Qxd5 {[%emt 0:00:38]} 30. Bxd5+ {[%emt 0:00:00]} Kh8 {[%emt 0:00:22]} 31. Rc7 {[%emt 0:00:00]} b6 {[%emt 0:08:25]} 32. Rfc1 {[%emt 0:00:00]} Rfd8 {[%emt 0:00:23]} 33. Be6 {[%emt 0:00:00]} a5 {[%emt 0:01:01]} 34. h4 {[%emt 0:00:00]} Bb2 {[%emt 0:01:07]} 35. R1c2 {[%emt 0:00:00]} Ba3 {[%emt 0:01:34]} 36. h5 {[%emt 0:00:00]} Bc5 {[%emt 0:01:21]} 37. hxg6 {[%emt 0:00:00]} Bxe3+ {[%emt 0:01:45]} 38. Kf1 {[%emt 0:00:00]} 1-0

[Event "50th Ciudad Sevilla 2024"]
[Site "Sevilla"]
[Date "2025.01.10"]
[Round "1.20"]
[White "Ilinca Ilinca, Filip Antonio"]
[Black "Song, Yuxin"]
[Result "0-1"]
[Annotator "RC"]
[ECO "D01"]
[WhiteElo "1831"]
[BlackElo "2384"]
[PlyCount "72"]
[EventDate "2025.01.10"]
[EventType "swiss"]
[EventCountry "ESP"]
[SourceTitle "playchess.com"]
[Source "ChessBase"]
[SourceQuality "1"]
[TimeControl "90+30"]

1. d4 {[%emt 0:00:00]} Nf6 {[%emt 0:00:00]} 2. Nc3 {[%emt 0:00:00]} d5 {[%emt 0:00:00]} 3. Bf4 {[%emt 0:00:00]} a6 {[%emt 0:00:00]} 4. e3 {[%emt 0:00:00]} e6 {[%emt 0:00:00]} 5. Bd3 {[%emt 0:00:00]} c5 {[%emt 0:00:00]} 6. dxc5 {[%emt 0:00:00]} Bxc5 {[%emt 0:00:00]} 7. Nf3 {[%emt 0:00:00]} b5 {[%emt 0:00:00]} 8. O-O {[%emt 0:00:00]} Bb7 {[%emt 0:00:00]} 9. Re1 {[%emt 0:00:00]} O-O {[%emt 0:00:00]} 10. e4 {[%emt 0:00:00]} b4 {[%emt 0:00:00]} 11. Na4 {[%emt 0:00:00]} Bxf2+ {[%emt 0:00:00]} 12. Kxf2 {[%emt 0:00:00]} dxe4 {[%emt 0:00:00]} 13. Bxe4 {[%emt 0:00:00]} Nxe4+ {[%emt 0:00:00]} 14. Kg1 {[%emt 0:00:00]} Qa5 {[%emt 0:00:00]} 15. c3 {[%emt 0:00:00]} bxc3 {[%emt 0:00:00]} 16. Nxc3 {[%emt 0:00:00]} Nxc3 {[%emt 0:00:00]} 17. bxc3 {[%emt 0:00:00]} Rd8 {[%emt 0:00:00]} 18. Qe2 {[%emt 0:00:00]} Qf5 {[%emt 0:00:00]} 19. Bg3 {[%emt 0:00:00]} Bxf3 {[%emt 0:00:00]} 20. Qxf3 {[%emt 0:00:00]} Qxf3 {[%emt 0:00:00]} 21. gxf3 {[%emt 0:00:00]} Nc6 {[%emt 0:00:00]} 22. Rad1 {[%emt 0:00:00]} h6 {[%emt 0:00:00]} 23. Kf1 {[%emt 0:00:00]} g5 {[%emt 0:00:00]} 24. Bc7 {[%emt 0:00:00]} Rdc8 {[%emt 0:00:00]} 25. Bg3 {[%emt 0:00:00]} Ne7 {[%emt 0:00:00]} 26. Rd3 {[%emt 0:00:00]} Nd5 {[%emt 0:00:00]} 27. Rc1 {[%emt 0:00:00]} Rc4 {[%emt 0:00:00]} 28. Be1 {[%emt 0:00:00]} Rac8 {[%emt 0:00:00]} 29. Kf2 {[%emt 0:00:00]} Ra4 {[%emt 0:00:00]} 30. Rd2 {[%emt 0:00:00]} Kh7 {[%emt 0:00:00]} 31. Rdc2 {[%emt 0:00:00]} Rh4 {[%emt 0:00:00]} 32. Kg1 {[%emt 0:00:00]} Rhc4 {[%emt 0:00:00]} 33. Kf2 {[%emt 0:05:26]} R8c5 {[%emt 0:00:00]} 34. Bd2 {[%emt 0:03:11]} Kg6 {[%emt 0:00:00]} 35. Kg3 {[%emt 0:00:42]} Rc6 {[%emt 0:00:00]} 36. h3 {[%emt 0:01:45]} Nb4 {[%emt 0:00:00]} 0-1

[Event "50th Ciudad Sevilla 2024"]
[Site "Sevilla"]
[Date "2025.01.11"]
[Round "2.1"]
[White "Pintor, Simao"]
[Black "Xu, Xiangyu"]
[Result "0-1"]
[Annotator "RC"]
[ECO "B61"]
[WhiteElo "2050"]
[BlackElo "2611"]
[PlyCount "50"]
[EventDate "2025.01.10"]
[EventType "swiss"]
[EventCountry "ESP"]
[SourceTitle "playchess.com"]
[Source "ChessBase"]
[SourceQuality "1"]
[TimeControl "90+30"]

1. e4 {[%emt 0:00:00]} c5 {[%emt 0:00:00]} 2. Nf3 {[%emt 0:00:00]} Nc6 {[%emt 0:00:00]} 3. d4 {[%emt 0:00:00]} cxd4 {[%emt 0:00:00]} 4. Nxd4 {[%emt 0:00:00]} Nf6 {[%emt 0:00:00]} 5. Nc3 {[%emt 0:00:00]} d6 {[%emt 0:00:00]} 6. Bg5 {[%emt 0:00:00]} Bd7 {[%emt 0:00:00]} 7. Qd2 {[%emt 0:00:00]} a6 {[%emt 0:00:00]} 8. f3 {[%emt 0:00:00]} e6 {[%emt 0:00:00]} 9. O-O-O {[%emt 0:00:00]} Be7 {[%emt 0:00:00]} 10. Nxc6 {[%emt 0:00:00]} Bxc6 {[%emt 0:00:00]} 11. h4 {[%emt 0:00:00]} Rc8 {[%emt 0:00:00]} 12. Kb1 {[%emt 0:00:00]} b5 {[%emt 0:00:00]} 13. Ne2 {[%emt 0:00:00]} Bb7 {[%emt 0:00:00]} 14. Nd4 {[%emt 0:00:00]} h6 {[%emt 0:00:00]} 15. Be3 {[%emt 0:00:00]} Nd7 {[%emt 0:00:00]} 16. g4 {[%emt 0:00:00]} d5 {[%emt 0:00:00]} 17. exd5 {[%emt 0:00:00]} Bxd5 {[%emt 0:00:00]} 18. Nf5 {[%emt 0:00:00]} O-O {[%emt 0:00:00]} 19. Be2 {[%emt 0:00:00]} Ne5 {[%emt 0:00:00]} 20. Bxh6 {[%emt 0:00:00]} exf5 {[%emt 0:00:00]} 21. Qxd5 {[%emt 0:00:00]} Qc7 {[%emt 0:00:00]} 22. Bf4 {[%emt 0:00:00]} Qxc2+ {[%emt 0:00:00]} 23. Ka1 {[%emt 0:00:00]} Rfd8 {[%emt 0:00:00]} 24. Qxe5 {[%emt 0:00:00]} Rxd1+ {[%emt 0:00:00]} 25. Rxd1 {[%emt 0:00:00]} Bf6 {[%emt 0:00:00]} 0-1

[Event "50th Ciudad Sevilla 2024"]
[Site "Sevilla"]
[Date "2025.01.11"]
[Round "2.2"]
[White "Iturrizaga Bonelli, Eduardo"]
[Black "Ribeiro, Bruno"]
[Result "1-0"]
[Annotator "RC"]
[ECO "A10"]
[WhiteElo "2574"]
[BlackElo "2047"]
[PlyCount "35"]
[EventDate "2025.01.10"]
[EventType "swiss"]
[EventCountry "ESP"]
[SourceTitle "playchess.com"]
[Source "ChessBase"]
[SourceQuality "1"]
[TimeControl "90+30"]

1. c4 {[%emt 0:00:00]} b6 {[%emt 0:00:00]} 2. Nc3 {[%emt 0:00:00]} Bb7 {[%emt 0:00:00]} 3. e4 {[%emt 0:00:00]} e6 {[%emt 0:00:00]} 4. a3 {[%emt 0:00:00]} f5 {[%emt 0:00:00]} 5. exf5 {[%emt 0:00:00]} exf5 {[%emt 0:00:00]} 6. d4 {[%emt 0:00:00]} Nf6 {[%emt 0:00:00]} 7. Nf3 {[%emt 0:00:00]} Ne4 {[%emt 0:00:00]} 8. Bd3 {[%emt 0:00:00]} Be7 {[%emt 0:00:00]} 9. O-O {[%emt 0:00:00]} Nxc3 {[%emt 0:00:00]} 10. bxc3 {[%emt 0:00:00]} O-O {[%emt 0:00:00]} 11. Re1 {[%emt 0:00:00]} g6 {[%emt 0:00:00]} 12. Bh6 {[%emt 0:00:00]} Re8 {[%emt 0:00:00]} 13. c5 {[%emt 0:00:00]} d5 {[%emt 0:00:00]} 14. Qe2 {[%emt 0:00:00]} Nd7 {[%emt 0:00:00]} 15. Qe6+ {[%emt 0:00:00]} Kh8 {[%emt 0:00:00]} 16. Qf7 {[%emt 0:00:00]} Bf6 {[%emt 0:00:00]} 17. Ng5 {[%emt 0:00:00]} Re7 {[%emt 0:00:00]} 18. Rxe7 {[%emt 0:00:00]} 1-0